bitfinex/quotes_ETHUSD_20250803
["timestamp","ask_amount","ask_price","bid_price","bid_amount"]
[1754263084521,0.7012,3513.7,3513.6,5.84608378]
[1754263084921,0.7012,3513.7,3513.6,3.0]
[1754263085232,1.1683,3513.7,3513.4,0.85547]
[1754263085430,0.1424,3513.5,3512.7,2.84675249]
[1754263085614,0.1424,3512.8,3512.7,2.84675249]
[1754263086011,1.1683,3512.8,3512.7,3.70241949]
[1754263086495,0.1424,3512.8,3512.7,3.70241949]
[1754263087100,0.5588,3513.7,3512.7,7.582263]
[1754263087399,0.1424,3513.3,3513.2,2.84640783]
[1754263087595,0.1424,3513.3,3512.8,2.98911505]
[1754263087830,0.7012,3513.3,3513.1,2.84642988]
[1754263088130,0.5588,3513.3,3513.2,2.84640783]
[1754263088334,0.4671,3513.5,3513.2,2.84640783]
[1754263088633,0.1424,3513.3,3513.2,2.84640783]
[1754263088936,0.1424,3513.3,3513.2,3.70197583]
[1754263089324,0.1424,3513.3,3513.2,0.855568]
[1754263089713,0.1424,3513.3,3513.2,3.70197583]
[1754263089909,1.1683,3513.3,3513.2,0.855568]
[1754263091632,1.1683,3513.3,3512.9,0.855675]
[1754263091838,1.0259,3513.2,3512.9,0.855675]
[1754263092006,0.1424,3513.0,3512.9,0.855675]
[1754263092202,0.7012,3513.0,3512.9,3.70232591]
[1754263092407,0.1424,3513.0,3512.9,3.70232591]
[1754263093336,0.1424,3513.0,3512.9,3.83682591]
[1754263093535,0.1424,3513.0,3512.9,3.70232591]
[1754263093742,1.1683,3513.0,3512.9,0.855675]
[1754263094404,1.72123,3513.0,3512.9,0.855675]
[1754263095236,1.72123,3513.0,3512.4,0.002]
[1754263095437,1.06148313,3512.9,3512.4,0.857675]
[1754263095624,0.1424,3512.5,3512.4,0.857675]
[1754263095939,0.7012,3512.5,3512.4,0.857675]
[1754263096137,1.1683,3512.5,3512.4,0.857675]
[1754263096339,0.1424,3512.5,3512.4,3.70473114]
[1754263096640,4.361,3513.0,3512.8,2.84672382]
[1754263096998,0.1424,3512.9,3512.4,1.35895585]
[1754263097204,0.1424,3512.9,3512.8,2.84673195]
[1754263097501,0.5588,3513.9,3513.4,2.84622309]
[1754263097702,0.1424,3513.5,3513.4,2.84617708]
[1754263099901,0.1424,3513.5,3513.4,3.40497708]
[1754263100547,3.55,3514.8,3513.9,2.84583186]
[1754263100548,0.5588,3514.3,3513.9,2.84583186]
[1754263100730,4.361,3514.1,3513.9,2.84583186]
[1754263101051,0.1424,3514.0,3513.9,2.8458408]
[1754263101613,0.1424,3514.0,3513.9,3.7012448]
[1754263102383,0.1424,3514.0,3513.9,0.855404]
[1754263102654,0.7012,3514.0,3513.9,3.7012448]
[1754263102816,0.1424,3514.0,3513.9,3.7012448]
[1754263103417,0.1424,3514.0,3513.7,2.84599541]
[1754263103627,0.1424,3513.8,3513.7,2.84599541]
[1754263103945,0.1424,3513.8,3513.7,3.40479541]
[1754263107848,0.1434,3513.8,3513.7,3.40479541]
[1754263110959,0.7176,3513.8,3513.7,3.40479541]
[1754263111345,1.1742,3513.8,3513.7,3.40479541]
[1754263111922,0.1434,3513.8,3513.7,3.40479541]
[1754263113320,0.001,3513.8,3513.7,4.0298913]
[1754263113521,0.001,3513.8,3513.7,7.2440913]
[1754263113725,0.001,3513.8,3513.7,7.3864913]
[1754263114447,0.001,3513.8,3513.7,7.1722913]
[1754263115190,0.21435776,3516.9,3515.3,2.84470742]
[1754263115469,0.1424,3515.3,3515.0,11.65978403]
[1754263115972,0.1424,3515.3,3515.1,0.855012]
[1754263116269,1.1732,3515.3,3515.2,2.84478834]
[1754263116441,0.599,3515.3,3515.2,2.84478834]
[1754263116787,0.1424,3515.3,3515.2,2.84478834]
[1754263116930,0.5742,3515.8,3515.1,0.855012]
[1754263117132,0.1424,3515.6,3515.5,2.84454558]
[1754263117771,0.5742,3516.3,3515.9,2.84422196]
[1754263118648,0.1434,3516.0,3515.9,2.84422196]
[1754263119250,4.8176,3516.4,3516.3,2.84389841]
[1754263119251,0.001,3516.4,3516.3,2.84389841]
[1754263119590,0.001,3516.4,3516.3,14.63448244]
[1754263119885,0.001,3516.4,3516.3,14.86028244]
[1754263120284,0.001,3516.4,3516.3,19.24428244]
[1754263120434,0.001,3516.4,3516.3,21.45311118]
[1754263120635,0.001,3516.4,3516.3,9.79332715]
[1754263120981,0.001,3516.4,3516.3,7.58449841]
[1754263121766,0.001,3516.4,3516.3,7.37029841]
[1754263124670,0.001,3516.4,3516.3,7.50059841]
[1754263124874,0.001,3516.4,3516.3,7.58399841]
[1754263125644,0.001,3516.4,3516.3,8.30059841]
[1754263125863,0.001,3516.4,3516.3,9.33165875]
[1754263126276,0.001,3516.4,3516.3,9.20135875]
[1754263127674,0.001,3516.4,3516.3,12.20135875]
[1754263133374,0.001,3516.4,3516.3,6.70289841]
[1754263133562,0.1424,3517.2,3516.3,6.70289841]
[1754263133563,0.1424,3517.2,3517.1,2.84325154]
[1754263133770,0.001,3517.4,3517.3,5.84308987]
[1754263133964,0.001,3517.4,3517.3,10.22908987]
[1754263135901,1.0308,3518.6,3518.5,5.84212022]
[1754263136855,1.0308,3518.6,3518.5,6.69624522]
[1754263137256,1.0308,3518.6,3518.5,3.854125]
[1754263137787,1.0308,3518.6,3518.5,0.854125]
[1754263140372,0.0355164,3519.5,3518.5,0.854125]
[1754263140373,0.4393,3520.5,3518.5,5.9817212]
[1754263140591,0.5885,3520.7,3520.3,2.84066698]
[1754263140788,0.5885,3520.7,3520.3,2.86907364]
[1754263141097,0.5885,3520.7,3520.3,5.86907364]
[1754263141273,0.5885,3520.7,3520.3,6.42916698]
[1754263142061,0.4393,3520.9,3520.3,6.42916698]
[1754263142359,0.5925,3521.0,3520.3,7.1899614]
[1754263142360,0.004,3521.0,3520.3,7.1899614]
[1754263142558,0.004,3521.0,3520.9,2.8401829]
[1754263142763,0.13873735,3524.4,3521.0,0.28401829]
[1754263142995,0.4393,3524.7,3523.2,14.56831652]
[1754263143181,0.5885,3524.9,3523.3,1.48521413]
[1754263143381,2.08825269,3525.5,3523.6,14.56831652]
[1754263143584,2.08825269,3525.5,3524.7,2.8370858]
[1754263143585,2.52755269,3525.5,3524.7,2.8370858]
[1754263143899,0.1416,3524.5,3524.0,0.1416]
[1754263144206,1.0278,3524.4,3523.3,0.21190657]
[1754263144499,1.06326803,3524.3,3522.8,3.0]
[1754263144660,1.06326803,3524.3,3522.2,14.56831652]
[1754263144661,0.4393,3524.2,3522.2,4.80433811]
[1754263144860,0.5885,3524.1,3522.3,3.02839054]
[1754263145098,0.47477105,3524.0,3522.2,0.21433811]
[1754263145267,0.5885,3523.9,3522.2,0.21433811]
[1754263145463,3.0,3523.7,3522.2,0.21433811]
[1754263145664,0.55,3523.5,3522.2,0.21433811]
[1754263145892,1.0278,3523.4,3522.3,0.02839054]
[1754263146202,0.4393,3523.3,3522.2,0.21433811]
[1754263146391,0.4393,3523.3,3522.4,0.02838973]
[1754263146559,0.4393,3523.7,3523.4,2.83815454]
[1754263146764,1.0278,3524.1,3523.5,2.86639229]
[1754263146984,1.0278,3524.1,3522.8,3.0]
[1754263146985,0.4393,3524.6,3523.6,0.02838006]
[1754263147190,0.4393,3524.6,3524.0,2.83766784]
[1754263147405,0.4393,3524.6,3524.2,2.83744476]
[1754263147565,0.4393,3524.6,3524.3,0.0066489]
[1754263147906,1.0278,3524.5,3523.1,3.0]
[1754263148092,0.55,3524.3,3522.5,2.83882839]
[1754263148292,0.55,3524.1,3522.2,0.5138666]
[1754263148605,0.55,3523.7,3520.4,0.0809]
[1754263148920,3.55,3523.5,3520.5,0.00669237]
[1754263149203,7.88827508,3523.6,3520.5,0.00669237]
[1754263149204,3.55,3523.3,3520.5,0.00669237]
[1754263149388,3.55,3523.3,3520.8,2.84024661]
[1754263149590,0.55,3523.1,3520.6,0.5885]
[1754263149767,0.55,3522.9,3520.7,2.84034424]
[1754263149971,0.55,3522.9,3520.6,0.5885]
[1754263149972,0.55,3522.7,3520.6,0.5885]
[1754263150176,30.0,3522.4,3520.6,0.5885]
[1754263150396,1.61328817,3522.3,3520.6,0.5885]
[1754263150597,0.16132811,3522.8,3520.6,0.5885]
[1754263150598,5.7638,3522.2,3520.6,0.5885]
[1754263150795,0.55,3522.1,3520.6,0.5885]
[1754263151011,0.55,3521.9,3520.6,0.5885]
[1754263151218,0.55,3521.7,3520.6,0.5885]
[1754263151409,5.1743,3521.6,3520.6,0.5885]
[1754263151904,1.0278,3521.5,3520.6,0.5885]
[1754263152092,4.735,3521.6,3520.6,0.5885]
[1754263152297,1.0278,3521.4,3520.6,0.5885]
[1754263152603,0.5885,3521.6,3520.6,0.5885]
[1754263152807,7.03678,3521.8,3521.0,2.84002552]
[1754263152988,7.03678,3521.8,3521.1,2.84001847]
[1754263153304,7.03678,3521.8,3520.6,0.5885]
[1754263153506,11.77278,3521.8,3521.2,2.83987991]
[1754263153718,11.76978,3521.8,3521.4,2.83975653]
[1754263153889,0.4393,3521.7,3521.2,2.83989582]
[1754263154111,0.4393,3522.5,3520.7,2.84034424]
[1754263154398,0.4393,3522.5,3522.0,2.839269]
[1754263154600,0.4393,3522.4,3522.0,2.839269]
[1754263154802,4.733,3522.7,3522.0,2.839269]
[1754263154975,0.1416,3522.1,3522.0,2.83928936]
[1754263155174,0.1416,3522.1,3521.9,2.83937453]
[1754263155372,0.1416,3522.3,3522.0,3.0]
[1754263155601,5.1683,3523.0,3522.3,5.83905402]
[1754263155914,0.1416,3522.8,3522.6,2.83878719]
[1754263156272,0.1416,3522.8,3522.3,2.83905402]
[1754263156622,0.1416,3523.1,3522.7,2.83873165]
[1754263157112,0.1416,3523.1,3522.9,2.83850278]
[1754263157274,0.1416,3523.1,3522.6,3.0]
[1754263157702,0.5885,3523.6,3522.9,2.83856744]
[1754263157905,0.1416,3523.0,3522.9,2.83855782]
[1754263158073,0.0916,3523.0,3522.7,2.83873165]
[1754263158276,0.5309,3523.0,3522.7,2.83873165]
[1754263158585,0.5309,3523.0,3522.7,2.83871924]
[1754263158908,0.5309,3523.0,3522.9,0.85313]
[1754263159607,1.1194,3523.0,3522.9,0.85313]
[1754263159795,1.1194,3523.0,3522.3,3.0]
[1754263160008,0.58454,3522.9,3522.6,0.853283]
[1754263160205,1.61234,3522.9,3522.6,0.853283]
[1754263160412,1.0278,3522.8,3521.9,0.1416]
[1754263160723,1.0278,3522.8,3522.3,0.853368]
[1754263160929,0.1416,3523.1,3522.6,0.1416]
[1754263161222,0.1416,3523.1,3522.7,3.0]
[1754263161382,0.1416,3523.1,3522.5,0.1416]
[1754263161584,5.1743,3523.4,3522.6,3.0]
[1754263161787,0.1416,3523.2,3522.7,0.1416]
[1754263162015,0.4393,3523.1,3522.7,0.1416]
[1754263162218,0.4393,3523.1,3522.8,2.83861831]
[1754263162429,0.4393,3523.1,3522.7,0.1416]
[1754263162636,0.4393,3523.1,3522.7,2.9803243]
[1754263162941,1.022433,3523.1,3522.8,2.83865107]
[1754263163147,0.4393,3523.1,3522.9,2.83856086]
[1754263163428,0.4393,3524.2,3523.2,3.0]
[1754263163596,2.813,3524.1,3523.5,2.83800949]
[1754263163925,2.813,3524.1,3523.2,3.0]
[1754263164130,0.58946694,3523.8,3523.4,2.83810322]
[1754263164340,0.15026363,3523.7,3523.6,2.83800658]
[1754263164687,0.9131694,3523.9,3523.8,2.8378455]
[1754263165118,1.3524694,3523.9,3523.8,2.8378455]
[1754263165323,1.3524694,3523.9,3523.7,2.83791841]
[1754263165617,0.4393,3523.8,3523.7,2.83791841]
[1754263165839,0.9131694,3523.9,3523.8,2.8378455]
[1754263165989,5.6461694,3523.9,3523.8,2.8378455]
[1754263166186,1.52171634,3523.9,3523.8,2.8378455]
[1754263166416,0.9131694,3523.9,3523.8,2.8378455]
[1754263166836,0.9131694,3523.9,3523.7,3.68957491]
[1754263167038,0.9131694,3523.9,3523.8,2.8378455]
[1754263167198,1.3524694,3523.9,3523.8,2.8378455]
[1754263167629,0.9131694,3523.9,3523.8,2.8378455]
[1754263168535,1.3524694,3523.9,3523.8,2.8378455]
[1754263169235,0.9131694,3523.9,3523.8,2.8378455]
[1754263169456,0.9131694,3523.9,3523.8,2.7878455]
[1754263170334,2.52498634,3523.9,3523.7,1.07078799]
[1754263170542,1.47618634,3523.9,3522.6,3.0]
[1754263170715,1.0488,3523.8,3523.2,3.0]
[1754263171030,1.0488,3523.8,3523.4,0.853013]
[1754263171217,0.4414,3523.7,3522.9,5.83854552]
[1754263171420,4.715,3523.6,3523.5,2.83808712]
[1754263171948,5.1564,3523.6,3523.5,2.83808712]
[1754263172146,5.1564,3523.6,3523.5,2.78808712]
[1754263172363,0.85989863,3523.8,3523.7,2.83792604]
[1754263172364,0.25249863,3523.8,3523.7,2.83792604]
[1754263172560,5.6231694,3523.9,3523.8,2.8378455]
[1754263172860,5.6221694,3523.9,3523.8,2.8378455]
[1754263173361,0.9131694,3523.9,3523.8,5.8378455]
[1754263173566,5.6221694,3523.9,3523.8,5.8378455]
[1754263173919,0.14377926,3527.4,3523.8,5.8378455]
[1754263173920,1e-08,3525.5,3525.4,2.83655755]
[1754263174119,1e-08,3525.5,3525.4,5.83655755]
[1754263174336,1e-08,3525.5,3525.4,5.97815755]
[1754263174537,1e-08,3525.5,3525.4,6.05489095]
[1754263174748,1e-08,3525.5,3525.4,7.63564591]
[1754263175036,1e-08,3525.5,3525.4,6.05489095]
[1754263176915,1e-08,3525.5,3525.4,3.2183334]
[1754263177128,0.44140001,3525.5,3525.4,3.2183334]
[1754263177664,1.04880001,3525.5,3525.4,0.2183334]
[1754263178075,1.04880001,3525.5,3525.1,3.0]
[1754263178288,1e-08,3525.5,3525.1,5.83679771]
[1754263178583,1e-08,3525.5,3525.1,2.83672581]
[1754263178930,1e-08,3525.5,3525.0,2.83687943]
[1754263179173,1e-08,3525.5,3525.1,3.0]
[1754263179367,1e-08,3525.5,3525.0,3.21781969]
[1754263179530,1e-08,3525.5,3524.5,4.827]
[1754263179732,0.44140001,3525.5,3524.6,5.83718689]
[1754263179926,0.44140001,3525.5,3524.6,6.04546578]
[1754263180867,0.64285696,3525.4,3524.6,0.20827889]
[1754263181178,0.4414,3525.3,3524.3,2.83743043]
[1754263181471,4.812,3525.2,3524.5,3.0]
[1754263181641,0.58608,3525.1,3524.5,3.0]
[1754263181848,1.02748,3525.1,3524.4,0.6074]
[1754263182056,1.02748,3525.1,3524.5,3.0]
[1754263182264,1.02748,3525.1,3524.4,0.6074]
[1754263182432,0.583948,3525.0,3524.4,3.44474567]
[1754263182633,0.583948,3525.0,3524.4,0.6074]
[1754263182943,5.389948,3525.0,3524.4,0.6074]
[1754263183256,5.389948,3525.0,3524.4,3.44476151]
[1754263183868,1e-08,3525.5,3524.6,3.0]
[1754263184066,1e-08,3525.5,3524.6,5.83718499]
[1754263184240,1e-08,3525.5,3525.1,2.83673596]
[1754263184446,1e-08,3525.5,3524.7,3.0]
[1754263184775,1e-08,3525.5,3525.4,2.83655755]
[1754263185447,1e-08,3525.5,3525.4,3.68902455]
[1754263185645,1e-08,3525.5,3525.4,0.852467]
[1754263185886,0.44140001,3525.5,3525.4,0.852467]
[1754263186087,1e-08,3525.5,3525.4,0.852467]
[1754263187251,0.44140001,3525.5,3525.4,0.852467]
[1754263187452,1e-08,3525.5,3525.4,5.97815755]
[1754263187786,1e-08,3525.5,3525.4,8.61237738]
[1754263187949,1e-08,3525.5,3525.4,3.0]
[1754263188151,1e-08,3525.5,3525.4,5.83655755]
[1754263189878,1e-08,3525.5,3525.4,3.0]
[1754263190090,0.44140001,3525.5,3525.4,3.0]
[1754263190407,1.04880001,3525.5,3525.4,3.0]
[1754263191170,1.04880001,3525.5,3525.2,0.6074]
[1754263191369,1.0488,3525.4,3525.2,0.6074]
[1754263191771,1.0488,3525.3,3525.2,0.6074]
[1754263191954,1.0488,3525.3,3524.6,2.83712563]
[1754263192154,1.0488,3525.3,3525.1,0.852667]
[1754263192155,5.2364,3525.2,3525.1,0.852667]
[1754263192556,5.8438,3525.2,3525.1,0.852667]
[1754263192757,1.63318,3525.2,3525.1,0.852667]
[1754263193079,5.8428,3525.2,3525.1,0.852667]
[1754263193285,1.0488,3525.2,3525.1,0.852667]
[1754263193771,5.8418,3525.2,3525.1,0.852667]
[1754263194293,5.8418,3525.2,3524.6,3.0]
[1754263194458,5.8418,3525.2,3524.6,2.83716641]
[1754263194796,5.8418,3525.2,3525.1,0.852666]
[1754263195174,5.8418,3525.2,3524.4,2.83733793]
[1754263195685,5.8418,3525.2,3524.3,0.21587345]
[1754263195882,4.783,3525.1,3524.5,0.852666]
[1754263196082,4.783,3525.1,3524.6,2.83713723]
[1754263196282,0.58318,3525.0,3524.7,2.83708986]
[1754263196488,5.2214,3525.1,3524.7,2.83708986]
[1754263196727,0.001,3525.2,3525.1,2.83679895]
[1754263197002,0.001,3525.2,3525.1,3.04613427]
[1754263198088,0.001,3525.2,3525.1,6.18773427]
[1754263202997,0.001,3525.2,3525.1,7.6402019]
[1754263204001,0.001,3525.2,3525.1,6.73773427]
[1754263205586,0.001,3525.2,3525.1,6.30137927]
[1754263209516,0.4494,3525.2,3525.1,6.30137927]
[1754263209690,1.0353,3525.2,3525.1,6.30137927]
[1754263210925,1.0353,3525.2,3525.1,0.46458032]
[1754263211083,1.0353,3525.2,3525.1,0.20933532]
[1754263211286,1.1769,3525.2,3524.5,0.852635]
[1754263211480,0.1416,3524.8,3524.3,0.1416]
[1754263211718,0.1416,3524.6,3524.1,0.1416]
[1754263211940,1.0343,3524.5,3524.1,0.1416]
[1754263212153,1.0343,3524.4,3523.5,2.84004971]
[1754263212311,1.0343,3524.3,3524.1,0.21364972]
[1754263212512,0.1416,3524.2,3523.7,2.83790772]
[1754263212919,1.0343,3524.1,3523.7,2.83790772]
[1754263213113,1.0343,3524.0,3523.3,0.85294]
[1754263213425,0.59,3523.9,3523.6,3.0]
[1754263213765,1.0343,3523.8,3523.4,3.1416]
[1754263213929,0.1416,3523.9,3523.6,0.21113619]
[1754263214131,1.0343,3523.8,3523.3,0.85294]
[1754263214328,1.0343,3523.7,3523.3,0.85294]
[1754263214532,1.0343,3523.6,3523.3,0.85294]
[1754263214830,1.0343,3523.5,3523.3,2.83821474]
[1754263215030,1.0343,3523.4,3523.3,2.97981474]
[1754263215257,1.0343,3523.4,3523.3,10.0]
[1754263215447,1.0343,3523.4,3523.3,7.0]
[1754263216542,1.0343,3523.4,3523.1,0.21276]
[1754263216720,1.0343,3523.3,3523.1,0.21276]
[1754263216947,1.0343,3523.2,3523.1,0.21276]
[1754263222517,1.5843,3523.2,3523.1,0.002]
[1754263223565,1.6197791,3523.2,3523.1,0.002]
[1754263223964,1.6197791,3523.2,3521.3,0.14846782]
[1754263224165,6.819,3523.8,3521.8,2.8394565]
[1754263224166,0.55,3523.0,3521.8,2.8394565]
[1754263224365,0.55,3522.8,3521.8,0.21493013]
[1754263224560,0.55,3522.8,3521.3,14.66670451]
[1754263224561,1.0343,3522.7,3521.7,2.83950535]
[1754263224804,1.0343,3522.6,3521.7,2.83950535]
[1754263225001,0.15843,3522.5,3521.7,2.83950535]
[1754263225203,1.19273,3522.5,3521.4,2.83975717]
[1754263225403,5.7363,3522.4,3521.3,3.0]
[1754263225607,1.0343,3522.3,3521.2,2.83987629]
[1754263225772,1.0343,3522.3,3521.0,2.84005715]
[1754263225773,0.1416,3521.6,3521.3,3.0]
[1754263225967,0.7275,3521.6,3521.4,2.83977963]
[1754263226265,0.7275,3521.6,3521.3,3.0]
[1754263226266,0.5859,3521.5,3521.3,2.83984501]
[1754263226505,0.5859,3521.4,3521.2,0.21825577]
[1754263226681,1.0343,3521.4,3521.2,3.05819062]
[1754263226933,0.1416,3521.6,3521.5,2.83969899]
[1754263227241,0.1416,3521.6,3521.2,2.83987577]
[1754263227447,0.1416,3521.6,3521.1,2.840021]
[1754263227622,0.5859,3521.5,3521.2,2.83990165]
[1754263227821,0.1416,3521.6,3521.2,2.83991687]
[1754263228033,0.5859,3521.4,3521.0,5.98248016]
[1754263228345,0.5859,3521.4,3521.3,2.83986027]
[1754263228503,0.7275,3521.4,3521.3,2.83986027]
[1754263228706,0.1416,3521.4,3521.3,2.83986027]
[1754263228903,3.0,3523.7,3521.3,2.83496027]
[1754263229145,10.1,3524.3,3521.3,2.83496027]
[1754263229146,0.1416,3521.7,3521.6,2.83958121]
[1754263229510,0.1416,3521.7,3521.5,2.83967763]
[1754263229845,0.1416,3521.7,3521.6,2.83961835]
[1754263231050,0.6032,3522.3,3521.2,0.1416]
[1754263231351,0.1416,3521.9,3521.7,2.83953283]
[1754263231512,0.1416,3521.9,3521.8,5.83945709]
[1754263232612,0.1416,3521.9,3521.8,3.0]
[1754263232841,0.1416,3521.9,3521.8,2.83945709]
[1754263233254,0.1416,3521.9,3521.8,3.40735865]
[1754263233423,0.1416,3522.4,3522.3,2.82105402]
[1754263233622,0.1416,3522.4,3522.3,5.83905402]
[1754263233822,0.6032,3522.4,3522.3,2.83898127]
[1754263234249,5.2802,3522.8,3522.7,5.83873165]
[1754263234454,5.2802,3522.8,3522.7,3.0]
[1754263234655,1.2088,3522.8,3522.7,3.0]
[1754263234859,5.8858,3522.8,3522.7,5.83873165]
[1754263235070,5.8858,3522.8,3522.7,3.0]
[1754263235233,5.8858,3522.8,3522.7,5.83873165]
[1754263235431,5.8848,3522.8,3522.7,3.0]
[1754263235635,4.8176,3522.8,3522.7,5.83873165]
[1754263235856,4.673,3523.2,3523.1,2.8383548]
[1754263236070,4.673,3523.2,3522.9,2.83856446]
[1754263236369,0.1416,3523.0,3522.9,5.83856446]
[1754263236870,1.2088,3523.0,3522.9,3.0]
[1754263237074,1.2088,3523.0,3522.0,4.673]
[1754263237075,1.79698,3523.0,3521.9,2.83931263]
[1754263237375,0.6032,3523.1,3522.3,3.0]
[1754263237568,0.1416,3522.8,3522.7,5.83873165]
[1754263237974,4.67,3522.9,3522.6,3.0]
[1754263238140,5.2732,3522.9,3522.6,2.83873592]
[1754263238341,5.134,3522.9,3522.7,2.83871805]
[1754263238543,0.6032,3522.8,3522.7,5.83871805]
[1754263238740,1.0672,3522.8,3522.7,3.0]
[1754263238942,1.65508,3522.8,3522.4,0.1416]
[1754263239239,1.2088,3522.7,3522.3,0.002]
[1754263239463,0.1416,3522.4,3522.3,0.002]
[1754263239990,1.2088,3522.4,3522.3,0.002]
[1754263242220,1.7588,3522.4,3522.3,0.002]
[1754263242513,1.93822841,3522.4,3522.3,0.002]
[1754263243300,6.59722841,3522.4,3522.3,0.002]
[1754263244018,6.59422841,3522.4,3522.3,0.002]
[1754263244614,1.93822841,3522.4,3522.3,0.002]
[1754263244790,6.59422841,3522.4,3522.3,0.002]
[1754263244991,6.59122841,3522.4,3522.3,0.002]
[1754263246611,1.93822841,3522.4,3522.3,0.002]
[1754263246907,6.58722841,3522.4,3522.3,0.002]
[1754263247499,13.40722841,3522.4,3522.3,0.002]
[1754263247899,8.76122841,3522.4,3522.3,0.002]
[1754263248111,0.55,3522.3,3519.3,18.16868976]
[1754263248310,0.1424,3520.1,3519.7,2.84113363]
[1754263248510,0.1424,3519.9,3519.5,0.853844]
[1754263248735,0.6032,3521.0,3519.3,3.6381793]
[1754263248736,0.1424,3519.6,3519.3,3.6381793]
[1754263248921,0.1424,3519.6,3519.5,0.21523272]
[1754263249124,0.464,3519.8,3519.2,0.01270777]
[1754263249323,4.647,3519.7,3518.8,2.85301951]
[1754263249638,0.1424,3519.1,3518.9,0.01114625]
[1754263249842,0.1424,3519.1,3519.0,0.01698651]
[1754263250048,0.1424,3519.1,3518.5,0.1424]
[1754263250338,0.1424,3519.1,3518.7,3.0]
[1754263250538,0.1424,3519.1,3518.7,2.84193476]
[1754263250749,0.1424,3519.1,3518.9,2.84178346]
[1754263250902,0.1424,3519.1,3518.7,2.84191117]
[1754263251098,0.1424,3519.1,3518.8,0.59843112]
[1754263251851,0.1424,3519.1,3519.0,2.84171639]
[1754263252027,0.1424,3519.1,3518.7,5.84195539]
[1754263252217,0.1424,3519.1,3518.9,2.84176492]
[1754263252406,0.1424,3519.1,3519.0,5.84171639]
[1754263252939,4.64,3519.7,3519.1,3.0]
[1754263253141,0.464,3520.1,3519.0,5.84170233]
[1754263253142,4.639,3519.6,3519.5,2.84131268]
[1754263253303,0.1424,3519.6,3519.5,2.84131268]
[1754263253716,4.7804,3519.9,3519.8,2.84100178]
[1754263253919,4.7804,3519.9,3519.8,3.0]
[1754263253920,4.638,3519.9,3519.8,3.0]
[1754263254333,4.638,3519.9,3519.8,5.84107051]
[1754263254546,4.638,3519.9,3519.8,3.0]
[1754263254920,4.638,3519.9,3519.8,5.84107051]
[1754263255832,4.638,3519.9,3519.8,3.0]
[1754263256150,4.638,3519.9,3519.2,3.72570617]
[1754263256320,5.102,3519.9,3519.2,2.84153594]
[1754263256650,4.638,3519.9,3518.7,0.853958]
[1754263256856,0.464,3520.2,3519.6,2.84119463]
[1754263257004,4.63,3520.1,3519.8,2.84104247]
[1754263257210,4.63,3520.1,3519.5,2.84130993]
[1754263257862,4.63,3520.1,3519.8,2.84106952]
[1754263258351,0.464,3520.2,3519.2,3.0]
[1754263258507,4.629,3520.0,3519.8,2.8410028]
[1754263258918,4.629,3520.0,3519.5,2.84129556]
[1754263259148,0.4475,3519.9,3519.4,2.84137802]
[1754263259352,5.2175,3520.0,3519.4,2.84137802]
[1754263259537,0.4475,3519.8,3519.4,2.84137802]
[1754263259846,5.2175,3520.0,3519.5,2.84125538]
[1754263259847,4.629,3520.0,3519.5,2.84125538]
[1754263260010,0.4475,3519.9,3518.8,3.32164879]
[1754263260351,4.624,3519.8,3519.2,2.84155489]
[1754263260568,4.624,3519.8,3518.9,0.41756338]
[1754263260742,4.624,3519.8,3519.0,3.0]
[1754263260743,0.48301439,3519.7,3519.0,3.0]
[1754263260953,0.03551539,3519.6,3518.8,0.21833101]
[1754263261117,0.55,3519.6,3518.7,2.84188857]
[1754263261318,0.4475,3519.5,3518.5,2.84209154]
[1754263261517,0.4475,3519.5,3517.8,3.69684678]
[1754263261745,3.0,3520.7,3517.8,12.590166]
[1754263261958,0.5885,3521.0,3518.5,11.735973]
[1754263261959,4.624,3520.6,3518.5,11.735973]
[1754263262223,3.0,3520.5,3519.8,2.841003]
[1754263262423,0.4475,3520.4,3518.9,2.84173654]
[1754263262774,4.626,3520.3,3520.2,2.84074768]
[1754263263058,0.4475,3520.7,3520.0,0.20879383]
[1754263263261,0.4475,3520.7,3519.2,2.84155489]
[1754263263469,4.63,3520.6,3520.2,2.84068215]
[1754263263637,4.63,3520.6,3519.3,1.12898652]
[1754263263638,0.4475,3520.5,3519.3,1.12898652]
[1754263263815,0.1424,3520.1,3519.6,0.1424]
[1754263264023,0.1424,3520.1,3519.9,2.84091697]
[1754263264425,0.1424,3520.1,3519.7,2.84115123]
[1754263264619,0.1424,3520.1,3519.7,0.5682404]
[1754263264841,0.1424,3520.1,3519.7,2.84114643]
[1754263265042,0.1424,3520.1,3519.8,2.84107051]
[1754263265446,0.1424,3520.1,3519.7,3.05165996]
[1754263265736,0.1424,3520.1,3520.0,2.84090909]
[1754263266748,4.622,3520.2,3520.0,2.84090909]
[1754263267068,4.622,3520.3,3520.2,2.84074768]
[1754263267266,4.622,3520.5,3520.4,2.84057195]
[1754263267436,0.1424,3520.6,3520.5,2.8405056]
[1754263267645,4.7634,3520.6,3520.5,2.8405056]
[1754263268063,4.7634,3520.6,3520.4,2.84057856]
[1754263268256,4.7634,3520.6,3520.5,2.8405056]
[1754263268575,0.1424,3520.6,3520.5,2.8405056]
[1754263268925,4.7584,3520.6,3520.5,2.8405056]
[1754263269325,4.7584,3520.6,3520.3,2.8390675]
[1754263269528,0.1424,3520.6,3520.5,2.8405056]
[1754263269840,4.7564,3520.6,3520.5,2.8405056]
[1754263270569,4.7564,3520.6,3520.3,2.84060289]
[1754263270776,4.7564,3520.6,3520.5,2.8405056]
[1754263270777,4.7534,3520.6,3520.5,2.8405056]
[1754263271123,0.1424,3520.6,3520.4,2.84056326]
[1754263271348,4.7524,3520.6,3520.4,2.84056326]
[1754263271742,4.7514,3520.6,3520.5,2.8405056]
[1754263272177,4.7494,3520.6,3520.5,2.8405056]
[1754263272358,4.7494,3520.6,3520.4,2.84056858]